[Event "December 5 Late 2023"]
[Site "https://www.chess.com"]
[Date "2023.12.05"]
[Round "4"]
[White "Stojanovski, Sandi"]
[Black "Buenafe Moya, Javier"]
[Result "1-0"]
[Board "120"]
[TimeControl "180+1"]
[WhiteFideId "1403249"]
[BlackFideId "2206412"]
[WhiteElo "2517"]
[BlackElo "2373"]
[WhiteTeam "DEN"]
[BlackTeam "ESP"]
[WhiteClock "0:00:09"]
[BlackClock "0:00:01"]

1. d3 {[%clk 0:03:00]}  g6 {[%clk 0:02:57]} 2. Nf3 {[%clk 0:03:01]}  Bg7 {[%clk 0:02:57]} 3. g3 {[%clk 0:03:02]}  f5 {[%clk 0:02:56]} 4. Bg2 {[%clk 0:03:03]}  Nf6 {[%clk 0:02:56]} 5. O-O {[%clk 0:03:03]}  d6 {[%clk 0:02:56]} 6. c4 {[%clk 0:03:04]}  O-O {[%clk 0:02:56]} 7. Nc3 {[%clk 0:03:04]}  c6 {[%clk 0:02:55]} 8. Rb1 {[%clk 0:03:03]}  e5 {[%clk 0:02:55]} 9. b4 {[%clk 0:03:02]}  Kh8 {[%clk 0:02:52]} 10. Qc2 {[%clk 0:02:58]}  Be6 {[%clk 0:02:43]} 11. Bb2 {[%clk 0:02:56]}  Nbd7 {[%clk 0:02:39]} 12. e3 {[%clk 0:02:53]}  a5 {[%clk 0:02:30]} 13. a3 {[%clk 0:02:48]}  axb4 {[%clk 0:02:25]} 14. axb4 {[%clk 0:02:49]}  d5 {[%clk 0:02:24]} 15. cxd5 {[%clk 0:02:08]}  cxd5 {[%clk 0:02:21]} 16. Rfc1 {[%clk 0:02:08]}  e4 {[%clk 0:02:18]} 17. Nd4 {[%clk 0:02:01]}  Bg8 {[%clk 0:02:16]} 18. Ncb5 {[%clk 0:01:38]}  Qe7 {[%clk 0:01:52]} 19. Qc7 {[%clk 0:01:25]}  h6 {[%clk 0:01:23]} 20. Qxb7 {[%clk 0:00:47]}  Qxb4 {[%clk 0:01:18]} 21. Ba3 {[%clk 0:00:35]}  Qd2 {[%clk 0:01:07]} 22. Bxf8 {[%clk 0:00:35]}  Rxf8 {[%clk 0:00:58]} 23. dxe4 {[%clk 0:00:35]}  dxe4 {[%clk 0:00:53]} 24. Rc7 {[%clk 0:00:31]}  Ng4 {[%clk 0:00:21]} 25. Rf1 {[%clk 0:00:28]}  Bxd4 {[%clk 0:00:16]} 26. Rxd7 {[%clk 0:00:23]}  Nxe3 {[%clk 0:00:15]} 27. fxe3 {[%clk 0:00:22]}  Bxe3+ {[%clk 0:00:13]} 28. Kh1 {[%clk 0:00:22]}  Qb2 {[%clk 0:00:12]} 29. Nd6 {[%clk 0:00:20]}  Qxb7 {[%clk 0:00:11]} 30. Nxb7 {[%clk 0:00:16]}  Ra8 {[%clk 0:00:10]} 31. Rd8 {[%clk 0:00:15]}  Ra2 {[%clk 0:00:09]} 32. Nd6 {[%clk 0:00:11]}  Kg7 {[%clk 0:00:08]} 33. Nxe4 {[%clk 0:00:09]}  fxe4 {[%clk 0:00:07]} 34. Bxe4 {[%clk 0:00:10]}  Bg5 {[%clk 0:00:07]} 35. Rd7+ {[%clk 0:00:09]}  Kh8 {[%clk 0:00:07]} 36. Bd5 {[%clk 0:00:07]}  Bxd5+ {[%clk 0:00:07]} 37. Rxd5 {[%clk 0:00:08]}  Ra8 {[%clk 0:00:06]} 38. Rd7 {[%clk 0:00:08]}  Rg8 {[%clk 0:00:05]} 39. h4 {[%clk 0:00:09]}  Bd8 {[%clk 0:00:04]} 40. Rff7 {[%clk 0:00:09]}  Re8 {[%clk 0:00:03]} 41. Rh7+ {[%clk 0:00:09]}  Kg8 {[%clk 0:00:04]} 42. Rxh6 {[%clk 0:00:10]}  g5 {[%clk 0:00:03]} 43. Rg6+ {[%clk 0:00:09]}  Kf8 {[%clk 0:00:03]} 44. hxg5 {[%clk 0:00:09]}  Re1+ {[%clk 0:00:02]} 45. Kg2 {[%clk 0:00:09]}  Bb6 {[%clk 0:00:03]} 46. Kh3 {[%clk 0:00:09]}  Rh1+ {[%clk 0:00:02]} 47. Kg4 {[%clk 0:00:09]}  Bc5 {[%clk 0:00:02]} 48. Rc6 {[%clk 0:00:09]}  Bf2 {[%clk 0:00:01]} 49. Rc8# {[%clk 0:00:09]} 1-0

[Event "December 5 Late 2023"]
[Site "https://www.chess.com"]
[Date "2023.12.05"]
[Round "4"]
[White "Hadzovic, Amir"]
[Black "Azali, Tannaz"]
[Result "1-0"]
[Board "121"]
[TimeControl "180+1"]
[WhiteFideId "14402300"]
[BlackFideId "12537721"]
[WhiteElo "2516"]
[BlackElo "2373"]
[WhiteTeam "BIH"]
[BlackTeam "IRI"]
[WhiteClock "0:00:33"]
[BlackClock "0:00:21"]

1. e4 {[%clk 0:02:59]}  c6 {[%clk 0:03:00]} 2. Nf3 {[%clk 0:02:58]}  d5 {[%clk 0:03:00]} 3. d3 {[%clk 0:02:59]}  Bg4 {[%clk 0:02:54]} 4. h3 {[%clk 0:02:59]}  Bh5 {[%clk 0:02:54]} 5. g4 {[%clk 0:02:59]}  Bg6 {[%clk 0:02:54]} 6. h4 {[%clk 0:02:59]}  dxe4 {[%clk 0:02:54]} 7. Ne5 {[%clk 0:02:57]}  exd3 {[%clk 0:02:52]} 8. Nxg6 {[%clk 0:02:57]}  hxg6 {[%clk 0:02:52]} 9. Bxd3 {[%clk 0:02:57]}  e5 {[%clk 0:02:51]} 10. g5 {[%clk 0:02:50]}  Bc5 {[%clk 0:02:45]} 11. Nc3 {[%clk 0:02:50]}  Ne7 {[%clk 0:02:45]} 12. Ne4 {[%clk 0:02:47]}  Bb6 {[%clk 0:02:45]} 13. Qf3 {[%clk 0:02:42]}  Nf5 {[%clk 0:02:43]} 14. Be3 {[%clk 0:02:36]}  Bxe3 {[%clk 0:02:38]} 15. fxe3 {[%clk 0:02:37]}  Qb6 {[%clk 0:02:37]} 16. O-O-O {[%clk 0:02:18]}  Nd7 {[%clk 0:02:35]} 17. h5 {[%clk 0:02:02]}  O-O-O {[%clk 0:02:34]} 18. Kb1 {[%clk 0:01:52]}  Kb8 {[%clk 0:02:24]} 19. Rde1 {[%clk 0:01:46]}  Qa5 {[%clk 0:02:06]} 20. Nc3 {[%clk 0:01:37]}  Nc5 {[%clk 0:02:04]} 21. Bxf5 {[%clk 0:01:36]}  gxf5 {[%clk 0:02:03]} 22. Qxf5 {[%clk 0:01:34]}  Qc7 {[%clk 0:01:40]} 23. h6 {[%clk 0:01:33]}  gxh6 {[%clk 0:01:40]} 24. gxh6 {[%clk 0:01:34]}  Qd6 {[%clk 0:01:37]} 25. h7 {[%clk 0:01:16]}  f6 {[%clk 0:01:33]} 26. Rd1 {[%clk 0:01:09]}  Qe7 {[%clk 0:01:28]} 27. Rxd8+ {[%clk 0:01:06]}  Qxd8 {[%clk 0:01:29]} 28. Rg1 {[%clk 0:01:03]}  a5 {[%clk 0:01:06]} 29. Qg6 {[%clk 0:00:40]}  Ka7 {[%clk 0:01:04]} 30. Qg8 {[%clk 0:00:39]}  Ne6 {[%clk 0:00:42]} 31. Qxe6 {[%clk 0:00:39]}  Rxh7 {[%clk 0:00:42]} 32. a4 {[%clk 0:00:36]}  Rh2 {[%clk 0:00:41]} 33. Rg7 {[%clk 0:00:34]}  Qd2 {[%clk 0:00:40]} 34. Qb3 {[%clk 0:00:34]}  Rh1+ {[%clk 0:00:24]} 35. Ka2 {[%clk 0:00:33]}  Qc1 {[%clk 0:00:21]} 36. Qxb7# {[%clk 0:00:33]} 1-0

[Event "December 5 Late 2023"]
[Site "https://www.chess.com"]
[Date "2023.12.05"]
[Round "4"]
[White "Nita, Lucian"]
[Black "Shapiro, Viktor"]
[Result "0-1"]
[Board "122"]
[TimeControl "180+1"]
[WhiteFideId "1206923"]
[BlackFideId "4175700"]
[WhiteElo "2368"]
[BlackElo "2514"]
[WhiteTeam "ROU"]
[BlackTeam "RUS"]
[WhiteClock "0:00:19"]
[BlackClock "0:00:18"]

1. e4 {[%clk 0:03:00]}  c5 {[%clk 0:02:59]} 2. Nf3 {[%clk 0:02:59]}  d6 {[%clk 0:03:00]} 3. d3 {[%clk 0:02:58]}  Nc6 {[%clk 0:02:58]} 4. Be2 {[%clk 0:02:58]}  g6 {[%clk 0:02:58]} 5. O-O {[%clk 0:02:59]}  Bg7 {[%clk 0:02:59]} 6. c3 {[%clk 0:02:59]}  e6 {[%clk 0:02:59]} 7. d4 {[%clk 0:02:58]}  cxd4 {[%clk 0:02:58]} 8. cxd4 {[%clk 0:02:58]}  Nge7 {[%clk 0:02:58]} 9. Nc3 {[%clk 0:02:58]}  O-O {[%clk 0:02:57]} 10. Bg5 {[%clk 0:02:56]}  h6 {[%clk 0:02:57]} 11. Be3 {[%clk 0:02:56]}  g5 {[%clk 0:02:56]} 12. d5 {[%clk 0:02:53]}  exd5 {[%clk 0:02:46]} 13. exd5 {[%clk 0:02:48]}  Ne5 {[%clk 0:02:45]} 14. Nxe5 {[%clk 0:02:48]}  Bxe5 {[%clk 0:02:45]} 15. Bd4 {[%clk 0:02:33]}  Ng6 {[%clk 0:02:36]} 16. Qd3 {[%clk 0:02:14]}  Nf4 {[%clk 0:02:31]} 17. Qd2 {[%clk 0:02:13]}  Re8 {[%clk 0:02:22]} 18. Bc4 {[%clk 0:02:10]}  a6 {[%clk 0:02:15]} 19. a4 {[%clk 0:02:09]}  Bf5 {[%clk 0:02:13]} 20. g3 {[%clk 0:02:07]}  Ng6 {[%clk 0:01:55]} 21. Rfe1 {[%clk 0:02:06]}  Qf6 {[%clk 0:01:52]} 22. Bxe5 {[%clk 0:02:04]}  Nxe5 {[%clk 0:01:52]} 23. Be2 {[%clk 0:02:04]}  g4 {[%clk 0:01:25]} 24. Qf4 {[%clk 0:01:57]}  Kg7 {[%clk 0:01:23]} 25. a5 {[%clk 0:01:36]}  Rac8 {[%clk 0:01:16]} 26. Rac1 {[%clk 0:01:32]}  Bd3 {[%clk 0:01:12]} 27. Qxf6+ {[%clk 0:01:25]}  Kxf6 {[%clk 0:01:12]} 28. Kg2 {[%clk 0:01:04]}  h5 {[%clk 0:01:02]} 29. h3 {[%clk 0:01:00]}  Bf5 {[%clk 0:00:54]} 30. hxg4 {[%clk 0:00:59]}  hxg4 {[%clk 0:00:52]} 31. f4 {[%clk 0:00:51]}  gxf3+ {[%clk 0:00:50]} 32. Bxf3 {[%clk 0:00:51]}  Nd3 {[%clk 0:00:27]} 33. Rf1 {[%clk 0:00:50]}  Nxc1 {[%clk 0:00:25]} 34. Rxc1 {[%clk 0:00:50]}  Rc4 {[%clk 0:00:22]} 35. Rf1 {[%clk 0:00:44]}  Kg6 {[%clk 0:00:20]} 36. g4 {[%clk 0:00:41]}  Bxg4 {[%clk 0:00:20]} 37. Rg1 {[%clk 0:00:23]}  Bxf3+ {[%clk 0:00:18]} 38. Kxf3+ {[%clk 0:00:24]}  Kf6 {[%clk 0:00:18]} 39. Ne4+ {[%clk 0:00:19]}  Rexe4 {[%clk 0:00:18]} 0-1

[Event "December 5 Late 2023"]
[Site "https://www.chess.com"]
[Date "2023.12.05"]
[Round "4"]
[White "Pesotskiy, Mikhail"]
[Black "Nery Junior, Jose Antonio"]
[Result "1-0"]
[Board "123"]
[TimeControl "180+1"]
[WhiteFideId "34164453"]
[BlackFideId "2104822"]
[WhiteElo "2514"]
[BlackElo "2364"]
[WhiteTeam "RUS"]
[BlackTeam "BRA"]
[WhiteClock "0:00:57"]
[BlackClock "0:00:00"]

1. d4 {[%clk 0:02:59]}  d5 {[%clk 0:01:39]} 2. c4 {[%clk 0:02:45]}  c6 {[%clk 0:01:39]} 3. Nf3 {[%clk 0:02:45]}  Nf6 {[%clk 0:01:37]} 4. Nbd2 {[%clk 0:02:46]}  e6 {[%clk 0:01:35]} 5. e3 {[%clk 0:02:46]}  Nbd7 {[%clk 0:01:30]} 6. b3 {[%clk 0:02:46]}  Bd6 {[%clk 0:01:19]} 7. Bb2 {[%clk 0:02:46]}  Qe7 {[%clk 0:01:19]} 8. Ne5 {[%clk 0:02:46]}  Ne4 {[%clk 0:01:05]} 9. Bd3 {[%clk 0:02:13]}  Nxd2 {[%clk 0:01:00]} 10. Qxd2 {[%clk 0:02:14]}  Nxe5 {[%clk 0:00:58]} 11. dxe5 {[%clk 0:02:15]}  Bb4 {[%clk 0:00:58]} 12. Bc3 {[%clk 0:02:15]}  Bxc3 {[%clk 0:00:55]} 13. Qxc3 {[%clk 0:02:16]}  O-O {[%clk 0:00:56]} 14. O-O {[%clk 0:02:16]}  f5 {[%clk 0:00:47]} 15. exf6 {[%clk 0:02:16]}  Rxf6 {[%clk 0:00:46]} 16. e4 {[%clk 0:02:15]}  Rh6 {[%clk 0:00:35]} 17. Qe5 {[%clk 0:02:10]}  Qf6 {[%clk 0:00:30]} 18. Qxf6 {[%clk 0:02:04]}  Rxf6 {[%clk 0:00:30]} 19. exd5 {[%clk 0:01:59]}  exd5 {[%clk 0:00:27]} 20. cxd5 {[%clk 0:02:00]}  cxd5 {[%clk 0:00:23]} 21. Rac1 {[%clk 0:02:00]}  Rc6 {[%clk 0:00:21]} 22. Bb5 {[%clk 0:01:53]}  Rxc1 {[%clk 0:00:19]} 23. Rxc1 {[%clk 0:01:54]}  Bf5 {[%clk 0:00:20]} 24. f3 {[%clk 0:01:46]}  a6 {[%clk 0:00:20]} 25. Bf1 {[%clk 0:01:45]}  Rd8 {[%clk 0:00:19]} 26. Kf2 {[%clk 0:01:41]}  Kf7 {[%clk 0:00:18]} 27. Ke3 {[%clk 0:01:40]}  Rd7 {[%clk 0:00:19]} 28. Kd4 {[%clk 0:01:39]}  h5 {[%clk 0:00:15]} 29. g3 {[%clk 0:01:31]}  Ke6 {[%clk 0:00:15]} 30. Re1+ {[%clk 0:01:30]}  Kd6 {[%clk 0:00:14]} 31. Re5 {[%clk 0:01:30]}  Be6 {[%clk 0:00:12]} 32. Rxe6+ {[%clk 0:01:30]}  Kxe6 {[%clk 0:00:11]} 33. Bh3+ {[%clk 0:01:31]}  Ke7 {[%clk 0:00:12]} 34. Bxd7 {[%clk 0:01:32]}  Kxd7 {[%clk 0:00:13]} 35. Kxd5 {[%clk 0:01:33]}  Ke7 {[%clk 0:00:07]} 36. h4 {[%clk 0:01:25]}  g6 {[%clk 0:00:06]} 37. g4 {[%clk 0:01:25]}  g5 {[%clk 0:00:06]} 38. Ke4 {[%clk 0:00:57]}  hxg4 {[%clk 0:00:02]} 39. hxg5 {[%clk 0:00:55]}  g3 {[%clk 0:00:02]} 40. Ke3 {[%clk 0:00:55]}  Ke6 {[%clk 0:00:01]} 41. f4 {[%clk 0:00:56]}  Kf5 {[%clk 0:00:02]} 42. Kf3 {[%clk 0:00:56]}  g2 {[%clk 0:00:02]} 43. Kxg2 {[%clk 0:00:56]}  Kxf4 {[%clk 0:00:00]} 44. g6 {[%clk 0:00:57]} 1-0

[Event "December 5 Late 2023"]
[Site "https://www.chess.com"]
[Date "2023.12.05"]
[Round "4"]
[White "Micic, Aleksa"]
[Black "Rees, Ioan"]
[Result "0-1"]
[Board "126"]
[TimeControl "180+1"]
[WhiteFideId "989940"]
[BlackFideId "1801236"]
[WhiteElo "2354"]
[BlackElo "2503"]
[WhiteTeam "SRB"]
[BlackTeam "WLS"]
[WhiteClock "0:00:13"]
[BlackClock "0:00:29"]

1. d4 {[%clk 0:03:00]}  Nf6 {[%clk 0:02:59]} 2. Nc3 {[%clk 0:03:00]}  d5 {[%clk 0:02:59]} 3. Bf4 {[%clk 0:03:00]}  e6 {[%clk 0:02:58]} 4. Nb5 {[%clk 0:02:56]}  Na6 {[%clk 0:02:59]} 5. e3 {[%clk 0:02:55]}  Be7 {[%clk 0:02:58]} 6. a4 {[%clk 0:02:51]}  O-O {[%clk 0:02:57]} 7. h3 {[%clk 0:02:49]}  Bd7 {[%clk 0:02:44]} 8. Nf3 {[%clk 0:02:48]}  c6 {[%clk 0:02:41]} 9. Na3 {[%clk 0:02:46]}  c5 {[%clk 0:02:40]} 10. c3 {[%clk 0:02:45]}  Ne4 {[%clk 0:02:32]} 11. Nb5 {[%clk 0:02:44]}  c4 {[%clk 0:02:26]} 12. Be2 {[%clk 0:02:43]}  Bxb5 {[%clk 0:02:19]} 13. axb5 {[%clk 0:02:42]}  Nc7 {[%clk 0:02:20]} 14. Qa4 {[%clk 0:02:41]}  a6 {[%clk 0:02:17]} 15. bxa6 {[%clk 0:02:38]}  Rxa6 {[%clk 0:02:16]} 16. Qd1 {[%clk 0:02:38]}  Bd6 {[%clk 0:02:10]} 17. Bxd6 {[%clk 0:02:35]}  Qxd6 {[%clk 0:02:10]} 18. O-O {[%clk 0:02:25]}  Rfa8 {[%clk 0:02:10]} 19. Rxa6 {[%clk 0:02:25]}  Qxa6 {[%clk 0:02:11]} 20. Nd2 {[%clk 0:02:20]}  f5 {[%clk 0:02:04]} 21. Nxe4 {[%clk 0:02:17]}  dxe4 {[%clk 0:02:04]} 22. b3 {[%clk 0:02:14]}  b5 {[%clk 0:02:02]} 23. bxc4 {[%clk 0:02:08]}  bxc4 {[%clk 0:02:03]} 24. Qb1 {[%clk 0:02:08]}  Nd5 {[%clk 0:01:56]} 25. Rc1 {[%clk 0:02:05]}  h6 {[%clk 0:01:45]} 26. g3 {[%clk 0:02:04]}  Kh7 {[%clk 0:01:43]} 27. Qb2 {[%clk 0:02:02]}  Ra7 {[%clk 0:01:38]} 28. Rb1 {[%clk 0:02:00]}  Qa4 {[%clk 0:01:25]} 29. Kg2 {[%clk 0:01:51]}  Ra6 {[%clk 0:01:10]} 30. Bd1 {[%clk 0:01:40]}  Qa2 {[%clk 0:01:07]} 31. Be2 {[%clk 0:01:05]}  Qa4 {[%clk 0:00:52]} 32. Bd1 {[%clk 0:01:04]}  Qa3 {[%clk 0:00:49]} 33. Qc2 {[%clk 0:00:34]}  Qxc3 {[%clk 0:00:47]} 34. Rc1 {[%clk 0:00:27]}  Qxc2 {[%clk 0:00:44]} 35. Rxc2 {[%clk 0:00:28]}  c3 {[%clk 0:00:44]} 36. Be2 {[%clk 0:00:28]}  Ra3 {[%clk 0:00:42]} 37. Bc4 {[%clk 0:00:24]}  Kg6 {[%clk 0:00:36]} 38. g4 {[%clk 0:00:21]}  Kf6 {[%clk 0:00:34]} 39. gxf5 {[%clk 0:00:21]}  Kxf5 {[%clk 0:00:35]} 40. Bxd5 {[%clk 0:00:20]}  exd5 {[%clk 0:00:35]} 41. f3 {[%clk 0:00:21]}  g5 {[%clk 0:00:32]} 42. Kg3 {[%clk 0:00:21]}  Rb3 {[%clk 0:00:30]} 43. Rc1 {[%clk 0:00:16]}  c2 {[%clk 0:00:29]} 44. fxe4+ {[%clk 0:00:15]}  Kxe4 {[%clk 0:00:28]} 45. Rxc2 {[%clk 0:00:15]}  Rxe3+ {[%clk 0:00:28]} 46. Kg4 {[%clk 0:00:16]}  Kxd4 {[%clk 0:00:28]} 47. h4 {[%clk 0:00:16]}  Re4+ {[%clk 0:00:27]} 48. Kf5 {[%clk 0:00:15]}  Rxh4 {[%clk 0:00:28]} 49. Rd2+ {[%clk 0:00:15]}  Kc4 {[%clk 0:00:28]} 50. Kg6 {[%clk 0:00:15]}  d4 {[%clk 0:00:28]} 51. Kf5 {[%clk 0:00:13]}  d3 {[%clk 0:00:29]} 0-1

[Event "December 5 Late 2023"]
[Site "https://www.chess.com"]
[Date "2023.12.05"]
[Round "4"]
[White "Calin, Alexandru"]
[Black "Prokhorov, Oleksandr"]
[Result "1-0"]
[Board "127"]
[TimeControl "180+1"]
[WhiteFideId "1222961"]
[BlackFideId "14105578"]
[WhiteElo "2503"]
[BlackElo "2342"]
[WhiteTeam "ROU"]
[BlackTeam "UKR"]
[WhiteClock "0:00:10"]
[BlackClock "0:00:03"]

1. d4 {[%clk 0:03:00]}  d6 {[%clk 0:02:47]} 2. Nf3 {[%clk 0:02:59]}  Bg4 {[%clk 0:02:45]} 3. e4 {[%clk 0:02:58]}  Nc6 {[%clk 0:02:41]} 4. Bc4 {[%clk 0:02:56]}  e6 {[%clk 0:02:39]} 5. Nc3 {[%clk 0:02:49]}  Nf6 {[%clk 0:02:30]} 6. Be3 {[%clk 0:02:49]}  Be7 {[%clk 0:02:28]} 7. Qd2 {[%clk 0:02:45]}  a6 {[%clk 0:02:27]} 8. h3 {[%clk 0:02:43]}  Bxf3 {[%clk 0:02:20]} 9. gxf3 {[%clk 0:02:44]}  b5 {[%clk 0:02:20]} 10. Nxb5 {[%clk 0:02:35]}  Rb8 {[%clk 0:02:11]} 11. Nc3 {[%clk 0:02:28]}  Rxb2 {[%clk 0:02:09]} 12. Bb3 {[%clk 0:02:17]}  d5 {[%clk 0:02:07]} 13. e5 {[%clk 0:02:16]}  Bb4 {[%clk 0:02:03]} 14. exf6 {[%clk 0:02:05]}  Qxf6 {[%clk 0:02:02]} 15. O-O {[%clk 0:01:50]}  Qxf3 {[%clk 0:01:55]} 16. Qe2 {[%clk 0:01:46]}  Qxh3 {[%clk 0:01:52]} 17. Nd1 {[%clk 0:01:46]}  Rxb3 {[%clk 0:01:44]} 18. axb3 {[%clk 0:01:43]}  Bd6 {[%clk 0:01:41]} 19. f4 {[%clk 0:01:29]}  O-O {[%clk 0:01:14]} 20. Qg2 {[%clk 0:01:24]}  Qf5 {[%clk 0:01:12]} 21. c4 {[%clk 0:01:13]}  Nb4 {[%clk 0:01:06]} 22. c5 {[%clk 0:01:13]}  Be7 {[%clk 0:01:03]} 23. Rc1 {[%clk 0:00:53]}  Bh4 {[%clk 0:00:55]} 24. Nf2 {[%clk 0:00:46]}  a5 {[%clk 0:00:39]} 25. Ng4 {[%clk 0:00:42]}  Kh8 {[%clk 0:00:30]} 26. Ne5 {[%clk 0:00:40]}  g6 {[%clk 0:00:29]} 27. Qg4 {[%clk 0:00:39]}  Qe4 {[%clk 0:00:26]} 28. Qf3 {[%clk 0:00:39]}  Qf5 {[%clk 0:00:23]} 29. Qg4 {[%clk 0:00:37]}  Qe4 {[%clk 0:00:23]} 30. Qxh4 {[%clk 0:00:38]}  Qxe3+ {[%clk 0:00:22]} 31. Qf2 {[%clk 0:00:39]}  Qxb3 {[%clk 0:00:16]} 32. Qf3 {[%clk 0:00:31]}  Qxf3 {[%clk 0:00:06]} 33. Rxf3 {[%clk 0:00:31]}  Kg7 {[%clk 0:00:05]} 34. Ra3 {[%clk 0:00:30]}  f6 {[%clk 0:00:04]} 35. Nd3 {[%clk 0:00:27]}  Nc6 {[%clk 0:00:02]} 36. Ra4 {[%clk 0:00:27]}  Rb8 {[%clk 0:00:01]} 37. Kf2 {[%clk 0:00:18]}  g5 {[%clk 0:00:01]} 38. fxg5 {[%clk 0:00:17]}  fxg5 {[%clk 0:00:02]} 39. Rg1 {[%clk 0:00:17]}  Kg6 {[%clk 0:00:03]} 40. Nf4+ {[%clk 0:00:16]}  Kf5 {[%clk 0:00:02]} 41. Nh5 {[%clk 0:00:16]}  g4 {[%clk 0:00:03]} 42. Ng3+ {[%clk 0:00:16]}  Kf4 {[%clk 0:00:03]} 43. Ne2+ {[%clk 0:00:14]}  Ke4 {[%clk 0:00:03]} 44. Ra3 {[%clk 0:00:15]}  e5 {[%clk 0:00:02]} 45. Re3+ {[%clk 0:00:13]}  Kf5 {[%clk 0:00:02]} 46. dxe5 {[%clk 0:00:13]}  Nxe5 {[%clk 0:00:03]} 47. Nd4+ {[%clk 0:00:14]}  Kf6 {[%clk 0:00:03]} 48. Rf1 {[%clk 0:00:12]}  Rb2+ {[%clk 0:00:04]} 49. Kg3+ {[%clk 0:00:12]}  Kg6 {[%clk 0:00:02]} 50. Rxe5 {[%clk 0:00:12]}  Rd2 {[%clk 0:00:03]} 51. Re6+ {[%clk 0:00:12]}  Kg7 {[%clk 0:00:03]} 52. Nf5+ {[%clk 0:00:12]}  Kg8 {[%clk 0:00:02]} 53. Re8+ {[%clk 0:00:11]}  Kf7 {[%clk 0:00:02]} 54. Nd6+ {[%clk 0:00:12]}  Kg6 {[%clk 0:00:03]} 55. Re6+ {[%clk 0:00:12]}  Kg7 {[%clk 0:00:03]} 56. Rf7+ {[%clk 0:00:09]}  Kg8 {[%clk 0:00:03]} 57. Re8# {[%clk 0:00:10]} 1-0

[Event "December 5 Late 2023"]
[Site "https://www.chess.com"]
[Date "2023.12.05"]
[Round "4"]
[White "youngdinousaur"]
[Black "Kovalevsky, Stanislav"]
[Result "0-1"]
[Board "130"]
[TimeControl "180+1"]
[BlackFideId "13508598"]
[WhiteElo "2328"]
[BlackElo "2497"]
[BlackTeam "FID"]
[WhiteClock "0:00:03"]
[BlackClock "0:00:16"]

1. d4 {[%clk 0:03:00]}  d5 {[%clk 0:03:00]} 2. Nf3 {[%clk 0:03:00]}  Nf6 {[%clk 0:02:59]} 3. Bf4 {[%clk 0:03:01]}  c5 {[%clk 0:02:58]} 4. e3 {[%clk 0:03:01]}  e6 {[%clk 0:02:58]} 5. Nbd2 {[%clk 0:02:59]}  Nc6 {[%clk 0:02:58]} 6. c3 {[%clk 0:02:59]}  Bd6 {[%clk 0:02:58]} 7. Bg3 {[%clk 0:02:59]}  a6 {[%clk 0:02:58]} 8. Bd3 {[%clk 0:02:59]}  O-O {[%clk 0:02:57]} 9. Ne5 {[%clk 0:02:58]}  Bxe5 {[%clk 0:02:56]} 10. dxe5 {[%clk 0:02:58]}  Nd7 {[%clk 0:02:57]} 11. f4 {[%clk 0:02:58]}  d4 {[%clk 0:02:54]} 12. exd4 {[%clk 0:02:56]}  cxd4 {[%clk 0:02:54]} 13. O-O {[%clk 0:02:47]}  b5 {[%clk 0:02:46]} 14. Ne4 {[%clk 0:02:40]}  dxc3 {[%clk 0:02:42]} 15. bxc3 {[%clk 0:02:41]}  Nb6 {[%clk 0:02:38]} 16. Qf3 {[%clk 0:02:09]}  Ne7 {[%clk 0:02:30]} 17. Rad1 {[%clk 0:02:07]}  Qc7 {[%clk 0:02:27]} 18. Bf2 {[%clk 0:01:34]}  Bb7 {[%clk 0:02:21]} 19. Qh5 {[%clk 0:01:27]}  Bxe4 {[%clk 0:01:59]} 20. Bxe4 {[%clk 0:01:28]}  g6 {[%clk 0:01:58]} 21. Qh3 {[%clk 0:01:21]}  Rad8 {[%clk 0:01:56]} 22. Bh4 {[%clk 0:01:18]}  Rxd1 {[%clk 0:01:42]} 23. Rxd1 {[%clk 0:01:19]}  Ned5 {[%clk 0:01:29]} 24. Bg5 {[%clk 0:01:01]}  Re8 {[%clk 0:01:12]} 25. Qh6 {[%clk 0:00:56]}  Qc5+ {[%clk 0:01:03]} 26. Kh1 {[%clk 0:00:54]}  Qf8 {[%clk 0:01:03]} 27. Qh3 {[%clk 0:00:48]}  Rc8 {[%clk 0:01:02]} 28. Rd3 {[%clk 0:00:35]}  b4 {[%clk 0:01:01]} 29. Bh6 {[%clk 0:00:21]}  Qe8 {[%clk 0:00:35]} 30. Rd1 {[%clk 0:00:17]}  Nxc3 {[%clk 0:00:31]} 31. Rf1 {[%clk 0:00:11]}  Nxe4 {[%clk 0:00:31]} 32. f5 {[%clk 0:00:11]}  exf5 {[%clk 0:00:29]} 33. Qh4 {[%clk 0:00:11]}  Qxe5 {[%clk 0:00:24]} 34. g4 {[%clk 0:00:11]}  Nf6 {[%clk 0:00:15]} 35. gxf5 {[%clk 0:00:10]}  Qe4+ {[%clk 0:00:15]} 36. Qxe4 {[%clk 0:00:07]}  Nxe4 {[%clk 0:00:16]} 37. fxg6 {[%clk 0:00:03]}  hxg6 {[%clk 0:00:16]} 0-1

[Event "December 5 Late 2023"]
[Site "https://www.chess.com"]
[Date "2023.12.05"]
[Round "4"]
[White "Mazurkiewicz, Michal"]
[Black "Mazzilli, Piero"]
[Result "1-0"]
[Board "131"]
[TimeControl "180+1"]
[WhiteFideId "1124943"]
[BlackFideId "807087"]
[WhiteElo "2496"]
[BlackElo "2327"]
[WhiteTeam "POL"]
[BlackTeam "ITA"]
[WhiteClock "0:01:02"]
[BlackClock "0:00:00"]

1. e4 {[%clk 0:02:59]}  c5 {[%clk 0:02:59]} 2. Nf3 {[%clk 0:03:00]}  d6 {[%clk 0:02:59]} 3. g3 {[%clk 0:02:59]}  Nf6 {[%clk 0:02:59]} 4. d3 {[%clk 0:02:59]}  Nc6 {[%clk 0:02:58]} 5. Bg2 {[%clk 0:02:59]}  g6 {[%clk 0:02:58]} 6. O-O {[%clk 0:03:00]}  Bg7 {[%clk 0:02:58]} 7. Re1 {[%clk 0:02:58]}  O-O {[%clk 0:02:57]} 8. e5 {[%clk 0:02:58]}  Nd5 {[%clk 0:02:48]} 9. exd6 {[%clk 0:02:58]}  Qxd6 {[%clk 0:02:45]} 10. Nbd2 {[%clk 0:02:58]}  b6 {[%clk 0:02:37]} 11. Nc4 {[%clk 0:02:56]}  Qc7 {[%clk 0:02:00]} 12. Nfe5 {[%clk 0:02:46]}  e6 {[%clk 0:01:35]} 13. Nxc6 {[%clk 0:02:43]}  Qxc6 {[%clk 0:01:35]} 14. Ne5 {[%clk 0:02:43]}  Bxe5 {[%clk 0:01:33]} 15. Rxe5 {[%clk 0:02:42]}  Bb7 {[%clk 0:01:24]} 16. Bh6 {[%clk 0:01:44]}  Rfe8 {[%clk 0:01:22]} 17. c4 {[%clk 0:01:30]}  Qc7 {[%clk 0:01:21]} 18. Qe1 {[%clk 0:01:30]}  Nb4 {[%clk 0:01:17]} 19. Bxb7 {[%clk 0:01:15]}  Qxb7 {[%clk 0:00:45]} 20. Qc3 {[%clk 0:01:14]}  Rad8 {[%clk 0:00:41]} 21. Rxc5 {[%clk 0:01:04]}  f6 {[%clk 0:00:00]} 22. Qxb4 {[%clk 0:01:02]} 1-0